bitfinex/quotes_BTCUSD_20250223
["timestamp","ask_amount","ask_price","bid_price","bid_amount"]
[1740275252461,0.03578568,96601.0,96600.0,0.00405353]
[1740275253272,0.03578568,96601.0,96600.0,0.00205353]
[1740275253479,0.03574568,96601.0,96600.0,5.353e-05]
[1740275253717,0.03574568,96601.0,96600.0,0.00205353]
[1740275254114,0.03574568,96601.0,96600.0,5.353e-05]
[1740275261032,0.03574568,96601.0,96600.0,0.00090373]
[1740275273807,0.03744628,96601.0,96600.0,0.00090373]
[1740275274581,0.19272328,96601.0,96600.0,0.00090373]
[1740275274757,0.03744628,96601.0,96600.0,0.00090373]
[1740275275818,0.3730217,96601.0,96600.0,0.00090373]
[1740275276003,0.37146897,96601.0,96600.0,0.00090373]
[1740275277387,0.37246897,96601.0,96600.0,0.00090373]
[1740275278345,0.74908897,96601.0,96600.0,0.00090373]
[1740275278564,0.76362982,96601.0,96600.0,0.00090373]
[1740275278770,0.76562982,96601.0,96600.0,0.00090373]
[1740275279657,0.76262982,96601.0,96600.0,0.00090373]
[1740275279863,0.76662982,96601.0,96600.0,0.00090373]
[1740275280061,0.76862982,96601.0,96600.0,0.00090373]
[1740275280474,0.76662982,96601.0,96600.0,0.00090373]
[1740275281775,0.77062982,96601.0,96600.0,0.00090373]
[1740275293141,0.92062982,96601.0,96600.0,0.00090373]
[1740275293349,0.95712546,96601.0,96600.0,7.3e-07]
[1740275293547,0.94799811,96601.0,96600.0,7.3e-07]
[1740275294151,0.94399811,96601.0,96600.0,7.3e-07]
[1740275294397,0.95099811,96601.0,96600.0,0.00100073]
[1740275294597,0.94699811,96601.0,96600.0,0.00100073]
[1740275294943,0.95399811,96601.0,96600.0,0.00200073]
[1740275295539,0.94699811,96601.0,96600.0,0.00100073]
[1740275295750,0.95399811,96601.0,96600.0,0.00200073]
[1740275314566,0.91822952,96601.0,96600.0,0.00200073]
[1740275329774,0.91822952,96601.0,96600.0,7.3e-07]
[1740275330807,0.305292,96592.0,96591.0,0.0008504]
[1740275331020,0.75209854,96592.0,96591.0,0.0008504]
[1740275331237,0.77941892,96592.0,96591.0,0.0008504]
[1740275332705,0.78641892,96592.0,96591.0,0.0008504]
[1740275333480,0.79341892,96592.0,96591.0,0.0008504]
[1740275375411,0.79337892,96592.0,96591.0,0.0008504]
[1740275391981,0.79507972,96592.0,96591.0,0.0008504]
[1740275431918,0.78610168,96592.0,96591.0,0.0008504]
[1740275436360,0.78606168,96592.0,96591.0,0.0008504]
[1740275441380,0.61630883,96592.0,96591.0,0.0008504]
[1740275441601,0.62160083,96592.0,96591.0,0.0008504]
[1740275441804,0.63614168,96592.0,96591.0,0.0008504]
[1740275448532,0.48084968,96592.0,96591.0,0.0008504]
[1740275450362,0.47384968,96592.0,96591.0,0.0008504]
[1740275450568,0.48084968,96592.0,96591.0,0.0008504]
[1740275451167,0.62914168,96592.0,96591.0,0.0008504]
[1740275451590,0.46330883,96592.0,96591.0,0.0008504]
[1740275451797,0.45630883,96592.0,96591.0,0.0008504]
[1740275452139,0.46230883,96592.0,96591.0,0.0008504]
[1740275453792,0.61760083,96592.0,96591.0,0.0008504]
[1740275454558,0.46230883,96592.0,96591.0,0.0008504]
[1740275459842,0.61760083,96592.0,96591.0,0.0008504]
[1740275460550,0.46230883,96592.0,96591.0,0.0008504]
[1740275465138,0.63214168,96592.0,96591.0,0.0008504]
[1740275465343,0.86154168,96592.0,96591.0,0.0008504]
[1740275465987,0.43175035,96591.0,96590.0,8e-07]
[1740275466179,0.53439604,96591.0,96590.0,8e-07]
[1740275466483,0.55276445,96591.0,96590.0,8e-07]
[1740275466846,0.92968445,96591.0,96580.0,2e-07]
[1740275467065,0.39919654,96581.0,96580.0,4.328e-05]
[1740275467263,0.54919654,96581.0,96580.0,4.328e-05]
[1740275467461,0.5675403,96581.0,96580.0,4.328e-05]
[1740275468494,0.5745403,96581.0,96580.0,4.328e-05]
[1740275468989,0.5815403,96581.0,96580.0,4.328e-05]
[1740275469375,0.5815403,96581.0,96534.0,0.0008502]
[1740275469376,0.29124085,96580.0,96559.0,7.8e-07]
[1740275469592,0.54922954,96560.0,96559.0,7.8e-07]
[1740275469795,0.87884954,96560.0,96559.0,7.8e-07]
[1740275470139,0.89717723,96560.0,96559.0,7.8e-07]
[1740275470256,0.90862019,96560.0,96559.0,7.8e-07]
[1740275471465,0.91462019,96560.0,96559.0,7.8e-07]
[1740275471592,0.90317723,96560.0,96559.0,7.8e-07]
[1740275472208,0.60659338,96560.0,96559.0,7.8e-07]
[1740275472438,0.76193638,96560.0,96559.0,7.8e-07]
[1740275472637,0.84973638,96560.0,96559.0,7.8e-07]
[1740275473051,0.76693638,96560.0,96559.0,7.8e-07]
[1740275473248,0.46159338,96560.0,96559.0,7.8e-07]
[1740275473480,0.61693638,96560.0,96559.0,7.8e-07]
[1740275474047,0.46159338,96560.0,96559.0,7.8e-07]
[1740275474279,0.61693638,96560.0,96559.0,7.8e-07]
[1740275475547,0.28731638,96560.0,96559.0,7.8e-07]
[1740275478215,0.75877723,96560.0,96559.0,7.8e-07]
[1740275478416,0.90877723,96560.0,96559.0,7.8e-07]
[1740275479381,0.90277723,96560.0,96559.0,7.8e-07]
[1740275479737,0.90977723,96560.0,96559.0,7.8e-07]
[1740275480159,0.89777723,96560.0,96559.0,7.8e-07]
[1740275480372,0.91177723,96560.0,96559.0,7.8e-07]
[1740275480575,0.90477723,96560.0,96559.0,7.8e-07]
[1740275480986,0.387079,96538.0,96537.0,0.0008504]
[1740275481183,0.83388554,96538.0,96537.0,0.0008504]
[1740275481379,0.76674093,96538.0,96537.0,0.0008504]
[1740275482247,0.76678385,96538.0,96537.0,0.0008504]
[1740275483521,0.77378385,96538.0,96537.0,0.0008504]
[1740275483720,0.78078385,96538.0,96537.0,0.0008504]
[1740275483917,0.77378385,96538.0,96537.0,0.0008504]
[1740275484449,0.77978385,96538.0,96537.0,0.0008504]
[1740275486542,0.459864,96538.0,96537.0,0.0008504]
[1740275486756,0.615243,96538.0,96537.0,0.0008504]
[1740275487290,0.459864,96538.0,96537.0,0.0008504]
[1740275487690,0.602243,96538.0,96537.0,0.0008504]
[1740275488066,0.605243,96538.0,96537.0,0.0008504]
[1740275488758,0.612243,96538.0,96537.0,0.0008504]
[1740275489366,0.605243,96538.0,96537.0,0.0008504]
[1740275489742,0.609243,96538.0,96537.0,0.0008504]
[1740275494024,0.124244,96538.0,96537.0,0.0008504]
[1740275495264,0.02159831,96538.0,96537.0,0.1562304]
[1740275495478,0.02159831,96538.0,96537.0,0.2356304]
[1740275495674,0.00704292,96538.0,96537.0,0.2356304]
[1740275496063,0.00404292,96538.0,96537.0,0.2356304]
[1740275496278,0.00504292,96538.0,96537.0,0.2356304]
[1740275496477,0.00104292,96538.0,96537.0,0.2356304]
[1740275496947,0.00204292,96538.0,96537.0,0.2356304]
[1740275497169,0.00204292,96538.0,96537.0,0.2366304]
[1740275497382,0.00200292,96538.0,96537.0,0.2366304]
[1740275498582,0.00100292,96538.0,96537.0,0.2366304]
[1740275498946,0.00100292,96538.0,96537.0,0.2376304]
[1740275510623,0.00100292,96538.0,96537.0,0.2833304]
[1740275511212,0.00270472,96538.0,96537.0,0.2833304]
[1740275512778,0.00270472,96538.0,96537.0,0.3233304]
[1740275513085,0.00270472,96538.0,96537.0,0.35562297]
[1740275513295,0.00270472,96538.0,96537.0,0.3233304]
[1740275513519,0.00270472,96538.0,96537.0,0.3308104]
[1740275513871,0.00170472,96538.0,96537.0,0.3298104]
[1740275514077,0.00170472,96538.0,96537.0,0.36109701]
[1740275514278,0.00270472,96538.0,96537.0,0.3328104]
[1740275514805,0.00270472,96538.0,96537.0,0.3298104]
[1740275515005,0.00370472,96538.0,96537.0,0.3328104]
[1740275516625,0.00370472,96538.0,96537.0,0.3253304]
[1740275516816,0.00370472,96538.0,96537.0,0.3128104]
[1740275517022,0.00370472,96538.0,96537.0,0.3328104]
[1740275517790,0.00370472,96538.0,96537.0,0.3128104]
[1740275517934,0.00370472,96538.0,96537.0,0.3328104]
[1740275521359,0.00370472,96538.0,96537.0,0.36510863]
[1740275532170,0.00370472,96538.0,96537.0,0.39614111]
[1740275532513,0.00370472,96538.0,96537.0,0.4987868]
[1740275532868,0.00040632,96551.0,96550.0,0.155359]
[1740275533105,0.08260632,96551.0,96537.0,0.03594092]
[1740275533303,0.08260632,96551.0,96540.0,0.10826247]
[1740275533445,0.08260632,96551.0,96550.0,0.03103248]
[1740275534048,0.08260632,96551.0,96550.0,0.03303248]
[1740275534253,0.34061001,96551.0,96550.0,0.03303248]
[1740275534466,0.34061001,96551.0,96550.0,0.03103248]
[1740275535734,0.34061001,96551.0,96550.0,0.03303248]
[1740275535904,0.34061001,96551.0,96550.0,0.004]
[1740275536251,0.19980823,96551.0,96538.0,0.155378]
[1740275536397,0.155363,96548.0,96538.0,0.155378]
[1740275536610,0.10264569,96547.0,96538.0,0.155378]
[1740275536843,0.11719793,96547.0,96538.0,0.155378]
[1740275537604,0.11719793,96547.0,96538.0,0.157378]
[1740275538916,0.11719793,96547.0,96539.0,0.155377]
[1740275539127,0.11719793,96547.0,96538.0,0.004]
[1740275539326,0.11719793,96547.0,96539.0,0.155377]
[1740275539479,0.11719793,96547.0,96543.0,0.155369]
[1740275539687,0.11719793,96547.0,96538.0,0.004]
[1740275539911,0.11719793,96547.0,96545.0,0.155367]
[1740275540119,0.11719793,96547.0,96540.0,0.207168]
[1740275540360,0.11719793,96547.0,96544.0,0.155368]
[1740275540944,0.11719793,96547.0,96546.0,0.155366]
[1740275541152,0.11719793,96547.0,96543.0,0.207159]
[1740275541355,0.11719793,96547.0,96540.0,0.01299009]
[1740275541656,0.10264569,96547.0,96540.0,0.002]
[1740275543337,0.10264569,96547.0,96544.0,0.002]
[1740275543742,0.10264569,96547.0,96540.0,0.002]
[1740275544189,0.10264569,96547.0,96540.0,0.004]
[1740275551074,0.01455122,96546.0,96540.0,0.004]
[1740275551278,0.11719691,96546.0,96540.0,0.004]
[1740275552271,0.11719691,96546.0,96540.0,0.002]
[1740275552874,0.11719691,96546.0,96540.0,0.005]
[1740275556342,0.12135312,96546.0,96540.0,0.005]
[1740275557642,0.12135312,96546.0,96540.0,0.160375]
[1740275557846,0.12135312,96546.0,96540.0,0.005]
[1740275558025,0.12135312,96546.0,96540.0,0.0058503]
[1740275558231,0.12131312,96546.0,96540.0,0.0058503]
[1740275559923,0.12131312,96546.0,96543.0,0.155369]
[1740275560517,0.12131312,96546.0,96544.0,0.155368]
[1740275561189,0.10264569,96546.0,96545.0,0.155367]
[1740275561684,0.12135096,96546.0,96545.0,0.155367]
[1740275561887,0.10264569,96546.0,96545.0,0.155367]
[1740275562064,0.00040632,96551.0,96550.0,0.155359]
[1740275562270,0.10305201,96551.0,96550.0,0.155359]
[1740275562447,0.00040632,96551.0,96550.0,0.155359]
[1740275563465,0.00040632,96551.0,96550.0,0.156359]
[1740275564013,0.00040632,96551.0,96550.0,0.18871904]
[1740275564499,0.00040632,96551.0,96550.0,0.18971904]
[1740275565322,0.00040632,96551.0,96550.0,0.157359]
[1740275568504,0.00040632,96551.0,96550.0,0.1778722]
[1740275583432,0.00040632,96551.0,96550.0,0.20891804]
[1740275586186,0.00040632,96551.0,96550.0,0.1778722]
[1740275590305,0.00040632,96551.0,96550.0,0.20894216]
[1740275602784,0.00040632,96551.0,96550.0,0.24132447]
[1740275603383,0.00040632,96551.0,96550.0,0.20894216]
[1740275607274,0.00040632,96551.0,96550.0,0.24133027]
[1740275609322,0.00040632,96551.0,96550.0,0.31633027]
[1740275610226,0.00040632,96551.0,96550.0,0.33433027]
[1740275610450,0.00040632,96551.0,96550.0,0.35733027]
[1740275611314,0.00040632,96551.0,96550.0,0.35433027]
[1740275611611,0.00040632,96551.0,96550.0,0.36133027]
[1740275611958,0.00040632,96551.0,96550.0,0.36573027]
[1740275612209,0.32962,96568.0,96567.0,0.155332]
[1740275612409,0.0017012,96569.0,96568.0,0.15533]
[1740275612908,0.0017012,96569.0,96568.0,0.16623633]
[1740275613351,0.0017012,96569.0,96568.0,0.16629437]
[1740275613720,0.0017012,96569.0,96568.0,0.16729437]
[1740275614013,0.0017012,96569.0,96568.0,0.19836433]
[1740275615999,0.0017012,96569.0,96568.0,0.20036433]
[1740275619066,0.0017012,96569.0,96568.0,0.16929437]
[1740275621637,0.0017012,96569.0,96568.0,0.18952846]
[1740275624265,0.0017012,96569.0,96568.0,0.2205373]
[1740275639554,0.0017012,96569.0,96568.0,0.252869]
[1740275640580,0.0017012,96569.0,96568.0,0.328369]
[1740275640785,0.0017012,96569.0,96568.0,0.327369]
[1740275641010,0.0017012,96569.0,96568.0,0.329369]
[1740275641179,0.0017012,96569.0,96568.0,0.334369]
[1740275641380,0.0017012,96569.0,96568.0,0.30336016]
[1740275642112,0.0017012,96569.0,96568.0,0.31076016]
[1740275643853,0.0017012,96569.0,96568.0,0.30336016]
[1740275644009,0.0017012,96569.0,96568.0,0.31076016]
[1740275653816,0.0017012,96569.0,96568.0,0.23526016]
[1740275659768,0.0017012,96569.0,96568.0,0.22786016]
[1740275660086,0.0017012,96569.0,96568.0,0.23526016]
[1740275666606,0.0017012,96569.0,96568.0,0.22786016]
[1740275666754,0.0017012,96569.0,96568.0,0.23526016]
[1740275683777,0.0017012,96569.0,96568.0,0.25526016]
[1740275684637,0.0017012,96569.0,96568.0,0.33526016]
[1740275685630,0.0017012,96569.0,96568.0,0.32626016]
[1740275685804,0.0037012,96569.0,96568.0,0.33926016]
[1740275689460,0.0037012,96569.0,96568.0,0.33186016]
[1740275689664,0.0037012,96569.0,96568.0,0.33926016]
[1740275691307,0.0037012,96569.0,96568.0,0.25926016]
[1740275696399,0.0037012,96569.0,96568.0,0.35247889]
[1740275704377,0.0037012,96569.0,96568.0,0.25926016]
[1740275711696,0.0037012,96569.0,96568.0,0.35244607]
[1740275720073,0.0037012,96569.0,96568.0,0.25926016]
[1740275722642,0.0037012,96569.0,96568.0,0.25186016]
[1740275722848,0.0037012,96569.0,96568.0,0.25926016]
[1740275745020,0.0037012,96569.0,96568.0,0.25186016]
[1740275745159,0.0037012,96569.0,96568.0,0.25926016]
[1740275752640,0.0037012,96569.0,96568.0,0.25186016]
[1740275752841,0.0037012,96569.0,96568.0,0.25926016]
[1740275755786,2e-07,96569.0,96568.0,0.25926016]
[1740275756354,2e-07,96569.0,96568.0,0.36190585]
[1740275756926,0.0456,96589.0,96588.0,0.155298]
[1740275757277,0.0815,96594.0,96591.0,0.155293]
[1740275757470,0.0815,96594.0,96591.0,0.1876247]
[1740275758447,0.0815,96594.0,96591.0,0.1906247]
[1740275760261,0.0498,96598.0,96591.0,0.1936247]
[1740275763320,0.0498,96598.0,96591.0,0.21430788]
[1740275809063,0.0017006,96600.0,96591.0,0.21430788]
[1740275814337,0.0017006,96600.0,96591.0,0.30749446]
[1740275817010,0.0017006,96600.0,96591.0,0.21430788]
[1740275823458,0.0017006,96600.0,96591.0,0.21130788]
[1740275823664,0.0017006,96600.0,96591.0,0.21630788]
[1740275853947,0.0017006,96600.0,96591.0,0.21330788]
[1740275854372,0.0017006,96600.0,96591.0,0.21530788]
[1740275854581,0.0017006,96600.0,96591.0,0.21330788]
[1740275854969,0.0017006,96600.0,96591.0,0.21730788]
[1740275856361,0.0017006,96600.0,96591.0,0.22466788]
[1740275883093,0.0808,96594.0,96591.0,0.22466788]
[1740275884776,0.1058994,96592.0,96591.0,0.06201488]
[1740275884974,0.18514649,96592.0,96591.0,0.02968318]
[1740275885144,0.20362018,96592.0,96591.0,0.02968318]
[1740275885962,0.20362018,96592.0,96591.0,0.18497618]
[1740275886311,0.20362018,96592.0,96591.0,0.17997618]
[1740275886499,0.20362018,96592.0,96591.0,0.17597618]
[1740275886788,0.20362018,96592.0,96591.0,0.18197618]
[1740275887286,0.20362018,96592.0,96591.0,0.18097618]
[1740275887486,0.20362018,96592.0,96591.0,0.18297618]
[1740275890853,0.20362018,96592.0,96591.0,0.02768318]
[1740275897606,0.20362018,96592.0,96591.0,0.18297618]
[1740275899233,0.20362018,96592.0,96591.0,0.02768318]
[1740275905186,0.20362018,96592.0,96591.0,0.18297618]
[1740275905908,0.20362018,96592.0,96591.0,0.02768318]
[1740275908204,0.02017449,96592.0,96591.0,0.18297618]
[1740275908585,0.0017008,96592.0,96591.0,0.18297618]
[1740275909565,0.0017008,96592.0,96591.0,0.21531209]
[1740275909886,0.0017008,96592.0,96591.0,0.21331209]
[1740275910088,0.0017008,96592.0,96591.0,0.20831209]
[1740275910437,0.0017008,96592.0,96591.0,0.28731209]
[1740275912056,0.0017008,96592.0,96591.0,0.29031209]
[1740275912481,0.0017008,96592.0,96591.0,0.28731209]
[1740275912820,0.0017008,96592.0,96591.0,0.29131209]
[1740275913690,0.0017008,96592.0,96591.0,0.28431209]
[1740275913910,0.0017008,96592.0,96591.0,0.28731209]
[1740275914316,0.0017008,96592.0,96591.0,0.28431209]
[1740275914515,0.0017008,96592.0,96591.0,0.28731209]
[1740275914896,0.0017008,96592.0,96591.0,0.29131209]
[1740275915295,0.0017008,96592.0,96591.0,0.28731209]
[1740275915641,0.0017008,96592.0,96591.0,0.29131209]
[1740275915824,0.0017008,96592.0,96591.0,0.21531209]
[1740275933701,0.0017008,96592.0,96591.0,0.20831209]
[1740275933901,0.0017008,96592.0,96591.0,0.21231209]
[1740275934104,0.0017008,96592.0,96591.0,0.21631209]
[1740275934551,0.0017008,96592.0,96591.0,0.21231209]
[1740275934762,0.0017008,96592.0,96591.0,0.21731209]
[1740275972375,0.0017008,96592.0,96591.0,0.22467209]
[1740275984977,0.0017008,96592.0,96591.0,0.21731209]
[1740275985768,0.0017008,96592.0,96591.0,0.21231209]
[1740275986034,0.0017008,96592.0,96591.0,0.20831209]
[1740275986180,0.0017008,96592.0,96591.0,0.21431209]
[1740275987271,0.0017008,96592.0,96591.0,0.18197618]
[1740275988986,0.0017008,96592.0,96591.0,0.21432475]
[1740275995578,0.0017008,96592.0,96591.0,0.05903175]
[1740275995753,0.0017008,96592.0,96591.0,0.18197618]
[1740275995960,0.0017008,96592.0,96591.0,0.02668318]
[1740275996362,0.0776008,96592.0,96591.0,0.02668318]
[1740275996564,0.09604803,96592.0,96591.0,0.17597618]
[1740275996944,0.09604803,96592.0,96591.0,0.17797618]
[1740275997182,0.0776008,96592.0,96591.0,0.17797618]
[1740275998180,0.0776008,96592.0,96591.0,0.02268318]
[1740275998389,0.0776008,96592.0,96591.0,0.02568318]
[1740275999598,0.0776008,96592.0,96591.0,0.18097618]
[1740276010454,0.0017008,96592.0,96591.0,0.18097618]
[1740276029369,0.0017008,96592.0,96591.0,0.21335444]
[1740276058227,0.0017008,96592.0,96591.0,0.18097618]
[1740276110913,0.0017008,96592.0,96591.0,0.21336415]
[1740276112460,0.0017008,96592.0,96591.0,0.29506415]
[1740276114194,0.0017008,96592.0,96591.0,0.29206415]
[1740276114753,0.0017008,96592.0,96591.0,0.29706415]
[1740276115395,0.0017008,96592.0,96591.0,0.29506415]
[1740276115776,0.0017008,96592.0,96591.0,0.29906415]
[1740276116988,0.0017008,96592.0,96591.0,0.29006415]
[1740276117188,0.0017008,96592.0,96591.0,0.31506415]
[1740276117395,8e-07,96592.0,96591.0,0.37026415]
[1740276118123,8e-07,96592.0,96591.0,0.62290984]
[1740276118629,8e-07,96592.0,96591.0,0.61190984]
[1740276118776,8e-07,96592.0,96591.0,0.62590984]
[1740276122629,8e-07,96592.0,96591.0,0.61890984]
[1740276122827,8e-07,96592.0,96591.0,0.62590984]
[1740276123704,8e-07,96592.0,96591.0,0.61890984]
[1740276124112,0.32962,96634.0,96615.0,0.155255]
[1740276124513,0.0017008,96628.0,96615.0,0.155255]
[1740276125452,0.00175888,96616.0,96615.0,0.159255]
[1740276126553,0.00175888,96616.0,96615.0,0.164255]
[1740276127776,0.00175888,96616.0,96615.0,0.1745436]
[1740276131494,0.00175888,96616.0,96615.0,0.18236889]
[1740276132856,0.00175888,96616.0,96615.0,0.20353683]
[1740276145387,0.00175888,96616.0,96615.0,0.23583203]
[1740276167953,0.00175888,96616.0,96615.0,0.23083203]
[1740276168174,0.00175888,96616.0,96615.0,0.23583203]
[1740276168370,0.00175888,96616.0,96615.0,0.23183203]
[1740276168728,0.00175888,96616.0,96615.0,0.23083203]
[1740276169117,0.00175888,96616.0,96615.0,0.23583203]
[1740276170525,0.00175888,96616.0,96615.0,0.38083203]
[1740276170727,0.00175888,96616.0,96615.0,0.38583203]
[1740276170937,0.00175888,96616.0,96615.0,0.50447772]
[1740276171155,0.00175888,96616.0,96615.0,0.55307772]
[1740276171583,0.00175888,96616.0,96615.0,0.55907772]
[1740276171977,0.00175888,96616.0,96615.0,0.55407772]
[1740276172178,0.00175888,96616.0,96615.0,0.55507772]
[1740276173636,0.00175888,96616.0,96615.0,0.56207772]
[1740276181281,0.0017008,96628.0,96622.0,0.155244]
[1740276181503,0.0017008,96628.0,96622.0,0.1875392]
[1740276183630,0.0017008,96628.0,96622.0,0.1935392]
[1740276184658,0.0017008,96628.0,96622.0,0.1985392]
[1740276191257,0.0017008,96628.0,96622.0,0.21928616]
[1740276198398,0.0017008,96628.0,96622.0,0.22664616]
[1740276204965,0.00153521,96623.0,96622.0,0.22664616]
[1740276215880,0.00153521,96623.0,96622.0,0.31965038]
[1740276216792,0.12623521,96623.0,96622.0,0.15704638]
[1740276216936,0.24636411,96623.0,96622.0,0.13629942]
[1740276217291,0.24636411,96623.0,96622.0,0.10400422]
[1740276217691,0.40160611,96623.0,96622.0,0.10400422]
[1740276218121,0.74576696,96623.0,96622.0,0.09900422]
[1740276218329,0.74576696,96623.0,96622.0,0.05100422]
[1740276219097,0.74576696,96623.0,96622.0,0.05400422]
[1740276219504,0.74576696,96623.0,96622.0,0.04900422]
[1740276219910,0.74576696,96623.0,96593.0,0.15529]
[1740276219911,0.16979285,96617.0,96593.0,0.15529]
[1740276220095,0.39869142,96617.0,96592.0,0.01026838]
[1740276220526,0.41458502,96617.0,96592.0,0.01026838]
[1740276220904,0.41458502,96617.0,96594.0,0.155288]
[1740276221123,0.41458502,96617.0,96592.0,0.01026838]
[1740276221124,0.41458502,96617.0,96597.0,0.155283]
[1740276221327,0.41458502,96617.0,96595.0,0.155286]
[1740276222203,0.41958502,96617.0,96594.0,0.207051]
[1740276222400,0.41958502,96617.0,96596.0,0.155285]
[1740276222814,0.41958502,96617.0,96596.0,0.155284]
[1740276222955,0.41958502,96617.0,96597.0,0.155283]
[1740276223161,0.74920502,96617.0,96595.0,0.155286]
[1740276223365,0.89920502,96617.0,96593.0,0.02049554]
[1740276224839,0.89420502,96617.0,96593.0,0.02049554]
[1740276225062,0.90120502,96617.0,96616.0,0.0018504]
[1740276226801,0.74595302,96617.0,96616.0,0.0018504]
[1740276227198,0.90120502,96617.0,96616.0,0.0018504]
[1740276251378,0.92120502,96617.0,96616.0,0.0018504]
[1740276258963,1.03030502,96617.0,96616.0,0.0018504]
[1740276264119,1.02330502,96617.0,96616.0,0.0008504]
[1740276264277,1.01030502,96617.0,96616.0,0.0018504]
[1740276264463,1.03030502,96617.0,96616.0,0.0018504]
[1740276264665,1.01230502,96617.0,96616.0,0.0018504]
[1740276264873,1.03230502,96617.0,96616.0,0.0018504]
[1740276265331,1.04078412,96617.0,96616.0,0.0028504]
[1740276265533,1.03378412,96617.0,96616.0,0.0018504]
[1740276265787,1.04078412,96617.0,96616.0,0.0018504]
[1740276269660,1.02078412,96617.0,96616.0,0.0018504]
[1740276269865,1.04078412,96617.0,96616.0,0.0018504]
[1740276270057,0.93168412,96617.0,96616.0,0.0018504]
[1740276270301,0.88318412,96617.0,96616.0,0.0018504]
[1740276270658,0.80050502,96617.0,96616.0,0.0018504]
[1740276271464,0.78050502,96617.0,96616.0,0.0018504]
[1740276272800,0.80050502,96617.0,96616.0,0.0018504]
[1740276273189,0.78050502,96617.0,96616.0,0.0018504]
[1740276273385,0.80050502,96617.0,96616.0,0.0018504]
[1740276273602,0.80698352,96617.0,96616.0,0.0018504]
[1740276274280,0.78698352,96617.0,96616.0,0.0018504]
[1740276274490,0.80698352,96617.0,96616.0,0.0018504]
[1740276277399,0.78698352,96617.0,96616.0,0.0018504]
[1740276283126,0.7973491,96617.0,96616.0,0.0018504]
[1740276288739,0.8769491,96617.0,96616.0,0.0018504]
[1740276289335,0.88235439,96617.0,96616.0,0.0018504]
[1740276291590,0.31981685,96602.0,96601.0,0.0008503]
[1740276291786,0.43986116,96602.0,96601.0,0.00090838]
[1740276292914,0.44086116,96602.0,96601.0,0.00090838]
[1740276293713,0.45770524,96602.0,96601.0,0.00090838]
[1740276294398,0.45970524,96602.0,96601.0,0.00090838]
[1740276297700,0.78932524,96602.0,96601.0,0.00090838]
[1740276303718,0.86922524,96602.0,96601.0,0.00090838]
[1740276303920,0.93762524,96602.0,96601.0,0.00090838]
[1740276304353,0.93562524,96602.0,96601.0,0.00090838]
[1740276304559,0.93662524,96602.0,96601.0,0.00090838]
[1740276304973,0.94062524,96602.0,96601.0,0.00090838]
[1740276305407,0.97705222,96602.0,96601.0,3.8e-07]
[1740276305829,1.09215222,96602.0,96601.0,3.8e-07]
[1740276306505,1.09215222,96602.0,96601.0,0.00085078]
[1740276306911,1.11211222,96602.0,96601.0,7.8e-07]
[1740276307065,1.08268524,96602.0,96601.0,7.8e-07]
[1740276307412,0.175292,96592.0,96591.0,0.0008504]
[1740276307624,0.77369504,96592.0,96591.0,0.0008504]
[1740276307918,0.78949063,96592.0,96591.0,0.0008504]
[1740276308629,0.87439063,96592.0,96591.0,0.0008504]
[1740276308926,0.87739063,96592.0,96591.0,0.0008504]
[1740276309368,0.89423471,96592.0,96591.0,0.0008504]
[1740276310921,0.88923471,96592.0,96591.0,0.0008504]
[1740276311141,0.88623471,96592.0,96591.0,0.0008504]
[1740276311342,0.89523471,96592.0,96591.0,0.0008504]
[1740276313595,0.89023471,96592.0,96591.0,0.0008504]
[1740276315048,0.88123471,96592.0,96591.0,0.0008504]
[1740276315415,0.89523471,96592.0,96591.0,0.0008504]
[1740276315816,0.88823471,96592.0,96591.0,0.0008504]
[1740276317513,0.89523471,96592.0,96591.0,0.0008504]
[1740276330593,0.89693591,96592.0,96591.0,0.0008504]
[1740276332371,0.305327,96570.0,96565.0,0.0461]
[1740276332597,0.75213354,96570.0,96565.0,0.0461]
[1740276333005,0.7734914,96570.0,96565.0,0.0461]
[1740276333621,0.7744914,96570.0,96565.0,0.0461]
[1740276334078,0.79333548,96570.0,96565.0,0.0461]
[1740276338719,0.63800848,96570.0,96565.0,0.0461]
[1740276338966,0.79333548,96570.0,96565.0,0.0461]
[1740276343563,0.7829699,96570.0,96565.0,0.0461]
[1740276360367,0.7799699,96570.0,96565.0,0.0461]
[1740276360737,0.7849699,96570.0,96565.0,0.0461]
[1740276361257,0.7849699,96570.0,96560.0,0.02082139]
[1740276361672,0.7819699,96570.0,96560.0,0.02082139]
[1740276361875,0.7849699,96570.0,96560.0,0.02082139]
[1740276362172,0.7829699,96570.0,96560.0,0.02082139]
[1740276362570,0.7849699,96570.0,96560.0,0.02082139]
[1740276368872,0.46510205,96570.0,96560.0,0.02082139]
[1740276369072,0.46510205,96570.0,96569.0,0.0459504]
[1740276369277,0.61510205,96570.0,96569.0,0.0459504]
[1740276369879,0.46510205,96570.0,96569.0,0.0459504]
[1740276377344,0.46510205,96570.0,96569.0,0.0008504]
[1740276377561,0.62042905,96570.0,96569.0,0.0008504]
[1740276379242,0.46510205,96570.0,96569.0,0.0008504]
[1740276381823,0.46210205,96570.0,96569.0,0.0008504]
[1740276382486,0.46010205,96570.0,96569.0,0.0008504]
[1740276382702,0.46510205,96570.0,96569.0,0.1561794]
[1740276382900,0.46510205,96570.0,96569.0,0.0008504]
[1740276383326,0.44474419,96570.0,96569.0,0.0008504]
[1740276383524,0.46610966,96570.0,96569.0,0.0008504]
[1740276383845,0.46610966,96570.0,96569.0,0.1561794]
[1740276384061,0.46310966,96570.0,96569.0,0.1561794]
[1740276384237,0.46210966,96570.0,96569.0,0.0008504]
[1740276384817,0.43874419,96570.0,96569.0,0.0008504]
[1740276386051,0.43874419,96570.0,96569.0,0.1561794]
[1740276386248,0.43226569,96570.0,96569.0,0.1561794]
[1740276386466,0.43226569,96570.0,96569.0,0.1611794]
[1740276396965,0.45362745,96570.0,96569.0,0.1611794]
[1740276400975,0.35098176,96570.0,96569.0,0.1611794]
[1740276401154,0.35098176,96570.0,96569.0,0.23920715]
[1740276401531,0.02136176,96570.0,96569.0,0.2068794]
[1740276401851,0.32962,96589.0,96581.0,0.005]
[1740276401999,0.10264569,96588.0,96581.0,0.005]
[1740276403230,0.10564569,96588.0,96581.0,0.005]
[1740276403665,0.00647924,96587.0,96581.0,0.005]
[1740276403864,0.10264569,96586.0,96581.0,0.005]
[1740276405019,0.00647924,96585.0,96581.0,0.005]
[1740276405227,0.10264569,96584.0,96581.0,0.005]
[1740276406763,0.10364569,96584.0,96581.0,0.005]
[1740276407577,0.00647924,96583.0,96581.0,0.005]
[1740276407721,0.10264569,96582.0,96581.0,0.005]
[1740276409339,0.10364569,96582.0,96581.0,0.005]
[1740276409547,0.10564569,96582.0,96581.0,0.005]
[1740276411050,0.11212493,96582.0,96581.0,0.005]
[1740276411771,0.13350802,96582.0,96581.0,0.005]
[1740276412560,0.13350802,96582.0,96581.0,0.0058506]
[1740276414059,0.11212493,96582.0,96581.0,0.0058506]
[1740276426894,0.13345831,96582.0,96581.0,0.0058506]
[1740276428076,0.12697907,96582.0,96581.0,0.0058506]
[1740276440104,0.12697907,96582.0,96581.0,0.0008506]